fUSD/lending_fUSD_20250313
["ID","MTS","AMOUNT","RATE_DAILY","PERIOD"]
[356109388,1741909901866,-1030.03,0.00025301,3]
[356109389,1741909901875,-500.0,0.00025301,3]
[356109390,1741909901885,-500.0,0.00025301,3]
[356109391,1741909901894,-500.0,0.00025301,3]
[356109392,1741909901904,-500.0,0.00025301,3]
[356109393,1741909901913,-583.44,0.00025301,3]
[356109394,1741909901923,-531.32,0.00025301,3]
[356109395,1741909901932,-500.0,0.00025301,3]
[356109396,1741909901941,-500.0,0.00025301,3]
[356109397,1741909901951,-500.0,0.00025301,3]
[356109398,1741909901960,-500.0,0.00025301,3]
[356109399,1741909901970,-500.0,0.00025301,3]
[356109400,1741909901980,-665.05,0.00025301,3]
[356109401,1741909901990,-500.0,0.00025301,3]
[356109402,1741909902000,-500.0,0.00025301,3]
[356109403,1741909902009,-1399.34,0.00025301,3]
[356109404,1741909902019,-500.0,0.00025301,3]
[356109405,1741909902030,-500.0,0.00025301,3]
[356109406,1741909902039,-500.0,0.00025301,3]
[356109407,1741909902049,-1162.37,0.00025301,3]
[356109408,1741909902063,-503.04,0.00025301,3]
[356109409,1741909902073,-637.46,0.00025301,3]
[356109410,1741909902082,-500.0,0.00025301,3]
[356109411,1741909902091,-500.0,0.00025301,3]
[356109412,1741909902100,-500.0,0.00025301,3]
[356109413,1741909902110,-500.0,0.00025301,3]
[356109414,1741909902119,-1000.0,0.00025301,60]
[356109415,1741909902129,-500.0,0.00025301,3]
[356109416,1741909902138,-500.0,0.00025301,3]
[356109417,1741909902147,-1488.89,0.00025301,3]
[356109418,1741909902157,-509.79,0.00025301,3]
[356109419,1741909902166,-564.75999096,0.00025301,3]
[356109420,1741909902176,-500.0,0.00025301,3]
[356109421,1741909902185,-1616.56,0.00025301,3]
[356109422,1741909902195,-500.0,0.00025301,3]
[356109423,1741909902205,-500.0,0.00025301,3]
[356109424,1741909902214,-500.0,0.00025301,3]
[356109425,1741909902223,-503.06,0.00025301,3]
[356109426,1741909902232,-566.59,0.00025301,3]
[356109427,1741909902241,-877.86,0.00025301,3]
[356109428,1741909902251,-1515.34,0.00025301,3]
[356109429,1741909902261,-500.0,0.00025301,3]
[356109430,1741909902271,-637.9,0.00025301,3]
[356109431,1741909902281,-500.0,0.00025301,3]
[356109432,1741909902291,-500.0,0.00025301,3]
[356109433,1741909902300,-500.0,0.00025301,3]
[356109434,1741909902309,-500.0,0.00025301,3]
[356109435,1741909902319,-500.0,0.00025301,3]
[356109436,1741909902328,-500.0,0.00025301,3]
[356109437,1741909902338,-1951.21,0.00025301,3]
[356109438,1741909902348,-500.0,0.00025301,3]
[356109439,1741909902358,-262.80075434,0.00025301,3]
[356109440,1741909902368,-1319.48,0.00025301,3]
[356109441,1741909902378,-500.0,0.00025301,3]
[356109442,1741909902387,-500.0,0.00025301,3]
[356109443,1741909902397,-500.0,0.00025301,3]
[356109444,1741909902406,-500.0,0.00025301,3]
[356109445,1741909902416,-500.0,0.00025301,3]
[356109446,1741909902426,-500.0,0.00025301,2]
[356109447,1741909902435,-761.68,0.00025301,3]
[356109448,1741909902448,-1194.67,0.00025301,3]
[356109449,1741909902458,-1173.33,0.00025301,3]
[356109450,1741909902467,-500.0,0.00025301,3]
[356109451,1741909902477,-610.98,0.00025301,3]
[356109452,1741909902488,-500.0,0.00025301,3]
[356109453,1741909902498,-500.0,0.00025301,3]
[356109454,1741909902508,-792.15,0.00025301,3]
[356109455,1741909902518,-1894.67,0.00025301,3]
[356109456,1741909902530,-1930.42,0.00025301,3]
[356109457,1741909902540,-500.0,0.00025301,3]
[356109458,1741909902550,-1350.01,0.00025301,3]
[356109459,1741909902560,-500.0,0.00025301,3]
[356109460,1741909902570,-500.0,0.00025301,3]
[356109461,1741909902580,-500.0,0.00025301,3]
[356109462,1741909902590,-659.78,0.00025301,3]
[356109463,1741909902600,-666.36,0.00025301,3]
[356109464,1741909902610,-500.0,0.00025301,3]
[356109465,1741909902619,-500.0,0.00025301,3]
[356109466,1741909902629,-740.67,0.00025301,3]
[356109467,1741909902639,-500.0,0.00025301,3]
[356109468,1741909902648,-500.0,0.00025301,3]
[356109469,1741909902658,-1446.01,0.00025301,3]
[356109470,1741909902668,-500.0,0.00025301,3]
[356109471,1741909902678,-506.61,0.00025301,3]
[356109472,1741909902688,-1542.57,0.00025301,3]
[356109473,1741909902697,-679.28,0.00025301,3]
[356109474,1741909902707,-509.45,0.00025301,3]
[356109475,1741909902717,-528.56,0.00025301,3]
[356109476,1741909902727,-803.83,0.00025301,3]
[356109477,1741909902738,-500.0,0.00025301,3]
[356109478,1741909902748,-500.0,0.00025301,3]
[356109479,1741909902758,-500.0,0.00025301,3]
[356109480,1741909902767,-500.0,0.00025301,3]
[356109481,1741909902778,-3776.5,0.00025301,3]
[356109482,1741909902788,-500.0,0.00025301,3]
[356109483,1741909902797,-1817.75,0.00025301,3]
[356109484,1741909902807,-500.0,0.00025301,3]
[356109485,1741909902817,-938.17,0.00025301,3]
[356109486,1741909902827,-1921.94,0.00025301,3]
[356109487,1741909902836,-500.0,0.00025301,3]
[356109488,1741909902847,-515.11,0.00025301,3]
[356109489,1741909902857,-519.89,0.00025301,3]
[356109490,1741909902866,-547.45,0.00025301,3]
[356109491,1741909902876,-500.0,0.00025301,3]
[356109492,1741909902886,-742.8,0.00025301,3]
[356109493,1741909902896,-500.0,0.00025301,3]
[356109494,1741909902905,-947.29,0.00025301,3]
[356109495,1741909902916,-1068.83,0.00025301,3]
[356109496,1741909902926,-2343.39047706,0.00025315,2]
[356109497,1741909902935,-1771.49,0.00025326,3]
[356109498,1741909902945,-1290.76,0.00025326,3]
[356109499,1741909902955,-559.65,0.00025326,3]
[356109500,1741909902965,-1582.8,0.00025326,3]
[356109501,1741909902975,-500.0,0.00025326,3]
[356109502,1741909902985,-500.0,0.00025326,3]
[356109503,1741909902995,-628.37,0.00025326,3]
[356109504,1741909903005,-500.0,0.00025326,3]
[356109505,1741909903015,-500.0,0.00025326,3]
[356109506,1741909903026,-534.48,0.00025326,3]
[356109507,1741909903035,-1267.72,0.00025326,3]
[356109508,1741909903044,-1652.9,0.00025326,3]
[356109509,1741909903053,-2343.56,0.00025326,3]
[356109510,1741909903062,-534.22,0.00025326,3]
[356109511,1741909903073,-855.84,0.00025326,3]
[356109512,1741909903082,-1751.29,0.00025326,3]
[356109513,1741909903093,-521.41,0.00025326,3]
[356109514,1741909903102,-1817.04,0.00025326,3]
[356109515,1741909903112,-500.0,0.00025326,3]
[356109516,1741909903122,-1529.79,0.00025326,3]
[356109517,1741909903132,-626.51,0.00025326,3]
[356109518,1741909903143,-469.95789842,0.00025326,3]
[356109519,1741909903152,-500.0,0.00025326,3]
[356109520,1741909903162,-1836.79,0.00025326,3]
[356109521,1741909903172,-647.08,0.00025326,3]
[356109522,1741909903181,-2784.94,0.00025326,3]
[356109523,1741909903192,-972.39,0.00025326,3]
[356109524,1741909903202,-950.08,0.00025326,3]
[356109525,1741909903212,-1153.097042,0.00025326,3]
[356109526,1741909903222,-663.57,0.00025326,3]
[356109527,1741909903233,-1194.86,0.00025326,3]
[356109528,1741909903243,-366.121728,0.00025326,3]
[356109529,1741909903254,-542.19,0.00025326,3]
[356109530,1741909903264,-500.0,0.00025326,3]
[356109531,1741909903274,-632.82,0.00025326,3]
[356109532,1741909903288,-152.872762,0.00025326,3]
[356109533,1741909903298,-500.0,0.00025326,3]
[356109534,1741909903307,-500.0,0.00025326,3]
[356109535,1741909903317,-1718.94,0.00025326,3]
[356109536,1741909903327,-593.31,0.00025326,3]
[356109537,1741909903337,-500.0,0.00025326,3]
[356109538,1741909903346,-1537.99,0.00025326,3]
[356109539,1741909903357,-500.0,0.00025326,3]
[356109540,1741909903367,-595.3,0.00025326,3]
[356109541,1741909903376,-500.0,0.00025326,3]
[356109542,1741909903386,-500.0,0.00025326,3]
[356109543,1741909903395,-2182.31,0.00025326,3]
[356109544,1741909903404,-234.21242815,0.00025326,3]
[356109545,1741909903414,-705.21,0.00025326,3]
[356109546,1741909903424,-500.0,0.00025326,3]
[356109547,1741909903434,-500.0,0.00025326,3]
[356109548,1741909903449,-513.62,0.00025326,3]
[356109549,1741909903459,-1703.64,0.00025326,3]
[356109550,1741909903469,-500.0,0.00025326,3]
[356109551,1741909903479,-500.0,0.00025326,3]
[356109552,1741909903489,-3566.18,0.00025326,2]
[356109553,1741909903573,-500.0,0.00025326,3]
[356109554,1741909903584,-1632.96,0.00025326,3]
[356109555,1741909903594,-500.0,0.00025326,3]
[356109556,1741909903604,-1051.26,0.00025326,3]
[356109557,1741909903614,-500.0,0.00025326,3]
[356109558,1741909903624,-1030.95,0.00025326,3]
[356109559,1741909903633,-732.74,0.00025326,3]
[356109560,1741909903643,-636.55,0.00025326,3]
[356109561,1741909903652,-500.0,0.00025326,3]
[356109562,1741909903662,-500.0,0.00025326,3]
[356109563,1741909903672,-666.39,0.00025326,3]
[356109564,1741909903682,-3568.36,0.00025327,3]
[356109565,1741909903692,-2980.86,0.00025327,3]
[356109566,1741909903702,-1531.97,0.00025327,3]
[356109567,1741909903712,-767.63,0.00025327,3]
[356109568,1741909903721,-638.89,0.00025327,3]
[356109569,1741909903731,-1612.27,0.00025327,3]
[356109570,1741909903740,-866.68,0.00025327,3]
[356109571,1741909903750,-1909.43,0.00025327,3]
[356109572,1741909903760,-503.16,0.00025327,3]
[356109573,1741909903770,-957.65,0.00025327,3]
[356109574,1741909903780,-686.97,0.00025327,3]
[356109575,1741909903790,-1023.55,0.00025327,3]
[356109576,1741909903800,-705.12,0.00025327,3]
[356109577,1741909903809,-500.0,0.00025327,3]
[356109578,1741909903820,-2081.77,0.00025327,3]
[356109579,1741909903830,-581.8,0.00025327,3]
[356109580,1741909903840,-1551.28,0.00025327,3]
[356109581,1741909903850,-1223.35,0.00025327,3]
[356109582,1741909903859,-575.64,0.00025327,3]
[356109583,1741909903868,-2382.43,0.00025327,3]
[356109584,1741909903878,-500.0,0.00025327,3]
[356109585,1741909903888,-1633.72,0.00025327,3]
[356109586,1741909903898,-1670.95,0.00025327,3]
[356109587,1741909903908,-2647.01,0.00025327,3]
[356109588,1741909903918,-694.85,0.00025327,3]
[356109589,1741909903928,-703.55,0.00025327,3]
[356109590,1741909903939,-1726.02,0.00025327,3]
[356109591,1741909903948,-1847.97,0.00025327,3]
[356109592,1741909903958,-1122.02,0.00025327,3]
[356109593,1741909903968,-547.84,0.00025327,3]
[356109594,1741909903978,-500.0,0.00025327,3]
[356109595,1741909903989,-685.17,0.00025327,3]
[356109596,1741909903999,-1136.63,0.00025327,3]
[356109597,1741909904008,-228.103281,0.00025328,7]
[356109598,1741909904018,-500.0,0.00025328,3]
[356109599,1741909904028,-1821.49,0.00025328,3]
[356109600,1741909904037,-1637.021766,0.00025328,7]
[356109601,1741909904046,-500.0,0.00025328,3]
[356109602,1741909904057,-1637.021766,0.00025328,7]
[356109603,1741909904066,-534.21,0.00025328,3]
[356109604,1741909904075,-721.07,0.00025328,3]
[356109605,1741909904085,-835.2,0.00025328,3]
[356109606,1741909904095,-500.0,0.00025328,3]
[356109607,1741909904104,-640.39,0.00025328,3]
[356109608,1741909904113,-500.0,0.00025328,3]
[356109609,1741909904122,-500.0,0.00025328,3]
[356109610,1741909904131,-1649.68,0.00025328,3]
[356109611,1741909904141,-602.71,0.00025328,3]
[356109612,1741909904150,-185.452921,0.00025328,7]
[356109613,1741909904160,-500.0,0.00025328,3]
[356109614,1741909904169,-185.452921,0.00025328,7]
[356109615,1741909904179,-500.0,0.00025328,3]
[356109616,1741909904189,-500.0,0.00025328,3]
[356109617,1741909904198,-500.0,0.00025328,3]
[356109618,1741909904208,-500.0,0.00025328,3]
[356109619,1741909904217,-717.27,0.00025328,3]
[356109620,1741909904226,-938.73,0.00025328,3]
[356109621,1741909904235,-1058.89,0.00025328,3]
[356109622,1741909904244,-942.53,0.00025328,3]
[356109623,1741909904253,-578.57,0.00025328,3]
[356109624,1741909904263,-909.28,0.00025328,3]
[356109625,1741909904272,-618.61,0.00025328,3]
[356109626,1741909904282,-500.0,0.00025328,3]
[356109627,1741909904291,-500.0,0.00025328,3]
[356109628,1741909904301,-500.0,0.00025328,3]
[356109629,1741909904311,-933.18,0.00025328,3]
[356109630,1741909904320,-500.0,0.00025328,3]
[356109631,1741909904329,-610.2,0.00025328,3]
[356109632,1741909904339,-264.45907664,0.00025328,3]
[356109633,1741909904348,-500.0,0.00025328,3]
[356109634,1741909904358,-500.0,0.00025328,3]
[356109635,1741909904367,-500.0,0.00025328,3]
[356109636,1741909904377,-10000.0,0.00025328,7]
[356109637,1741909904386,-500.0,0.00025328,3]
[356109638,1741909904396,-500.0,0.00025328,3]
[356109639,1741909904405,-10000.0,0.00025328,7]
[356109640,1741909904415,-204.42696246,0.00025328,3]
[356109641,1741909904424,-10000.0,0.00025328,7]
[356109642,1741909904434,-10000.0,0.00025328,7]
[356109643,1741909904445,-10000.0,0.00025328,7]
[356109644,1741909904455,-1597.02,0.00025328,3]
[356109645,1741909904464,-500.0,0.00025328,3]
[356109646,1741909904474,-1208.71,0.00025328,3]
[356109647,1741909904483,-961.24,0.00025328,3]
[356109648,1741909904493,-500.0,0.00025328,3]
[356109649,1741909904502,-500.0,0.00025328,3]
[356109650,1741909904511,-500.0,0.00025328,3]
[356109651,1741909904522,-500.0,0.00025328,3]
[356109652,1741909904531,-945.98,0.00025328,3]
[356109653,1741909904540,-500.0,0.00025328,3]
[356109654,1741909904549,-500.0,0.00025328,3]
[356109655,1741909904559,-500.0,0.00025328,3]
[356109656,1741909904568,-500.0,0.00025328,3]
[356109657,1741909904577,-599.05,0.00025328,3]
[356109658,1741909904587,-500.0,0.00025328,3]
[356109659,1741909904596,-1322.8,0.00025328,3]
[356109660,1741909904605,-500.0,0.00025328,3]
[356109661,1741909904614,-500.0,0.00025328,3]
[356109662,1741909904624,-524.04,0.00025328,3]
[356109663,1741909904633,-610.83334494,0.00025328,3]
[356109664,1741909904642,-500.0,0.00025328,3]
[356109665,1741909904652,-500.0,0.00025328,3]
[356109666,1741909904661,-1162.99,0.00025328,3]
[356109667,1741909904670,-1064.48,0.00025328,3]
[356109668,1741909904680,-500.0,0.00025328,3]
[356109669,1741909904690,-151.0,0.00025328,7]
[356109670,1741909904699,-2009.2,0.00025328,3]
[356109671,1741909904708,-1104.79,0.00025328,3]
[356109672,1741909904718,-1347.3,0.00025328,2]
[356109673,1741909904727,-1045.89,0.00025328,3]
[356109674,1741909904736,-1177.15,0.00025328,3]
[356109675,1741909904746,-1278.64,0.00025328,3]
[356109676,1741909904755,-1471.45,0.00025328,3]
[356109677,1741909904764,-500.0,0.00025328,3]
[356109678,1741909904773,-500.0,0.00025328,3]
[356109679,1741909904783,-500.0,0.00025328,3]
[356109680,1741909904792,-500.0,0.00025328,3]
[356109681,1741909904801,-1032.31,0.00025328,3]
[356109682,1741909904810,-500.0,0.00025328,3]
[356109683,1741909904819,-516.89,0.00025328,3]
[356109684,1741909904828,-1030.03,0.00025328,3]
[356109685,1741909904838,-500.0,0.00025328,3]
[356109686,1741909904847,-500.0,0.00025328,3]
[356109687,1741909904857,-500.0,0.00025328,3]
[356109688,1741909904866,-500.0,0.00025328,3]
[356109689,1741909904875,-609.43523615,0.00025328,3]
[356109690,1741909904883,-500.0,0.00025328,3]
[356109691,1741909904893,-520.87,0.00025328,3]
[356109692,1741909904902,-583.44,0.00025328,3]
[356109693,1741909904910,-531.32,0.00025328,3]
[356109694,1741909904920,-500.0,0.00025328,3]
[356109695,1741909904929,-549.11,0.00025328,3]
[356109696,1741909904938,-500.0,0.00025328,3]
[356109697,1741909904947,-500.0,0.00025328,3]
[356109698,1741909904956,-500.0,0.00025328,3]
[356109699,1741909904965,-500.0,0.00025328,3]
[356109700,1741909904975,-665.05,0.00025328,3]
[356109701,1741909904985,-500.0,0.00025328,2]
[356109702,1741909904994,-1886.33,0.00025328,3]
[356109703,1741909905004,-500.0,0.00025328,3]
[356109704,1741909905013,-1603.3,0.00025328,3]
[356109705,1741909905024,-500.0,0.00025328,3]
[356109706,1741909905033,-1399.34,0.00025328,3]
[356109707,1741909905042,-507.55,0.00025328,3]
[356109708,1741909905052,-500.0,0.00025328,3]
[356109709,1741909905061,-500.0,0.00025328,3]
[356109710,1741909905070,-500.0,0.00025328,3]
[356109711,1741909905079,-500.0,0.00025328,3]
[356109712,1741909905088,-500.0,0.00025328,3]
[356109713,1741909905099,-1162.37,0.00025328,3]
[356109714,1741909905108,-503.04,0.00025328,3]
[356109715,1741909905118,-637.46,0.00025328,3]
[356109716,1741909905127,-500.0,0.00025328,3]
[356109717,1741909905137,-500.0,0.00025328,3]
[356109718,1741909905146,-500.0,0.00025328,3]
[356109719,1741909905155,-500.0,0.00025328,3]
[356109720,1741909905164,-500.0,0.00025328,3]
[356109721,1741909905174,-1799.26,0.00025328,3]
[356109722,1741909905183,-197.48606333,0.00025328,60]
[356109723,1741909905193,-500.0,0.00025328,3]
[356109724,1741909905203,-500.0,0.00025328,3]
[356109725,1741909905212,-1038.47,0.00025328,3]
[356109726,1741909905221,-500.0,0.00025328,3]
[356109727,1741909905231,-1488.89,0.00025328,3]
[356109728,1741909905240,-509.79,0.00025328,3]
[356109729,1741909905250,-1529.19,0.00025328,3]
[356109730,1741909905259,-1146.19,0.00025328,3]
[356109731,1741909905268,-500.0,0.00025328,3]
[356109732,1741909905277,-1230.07,0.00025328,3]
[356109733,1741909905287,-1616.56,0.00025328,3]
[356109734,1741909905296,-500.0,0.00025328,3]
[356109735,1741909905306,-500.0,0.00025328,3]
[356109736,1741909905315,-500.0,0.00025328,3]
[356109737,1741909905324,-500.0,0.00025328,3]
[356109738,1741909905333,-503.06,0.00025328,3]
[356109739,1741909905343,-828.77,0.00025328,3]
[356109740,1741909905352,-766.89,0.00025328,3]
[356109741,1741909905361,-566.59,0.00025328,3]
[356109742,1741909905370,-877.86,0.00025328,3]
[356109743,1741909905379,-1515.34,0.00025328,3]
[356109744,1741909905389,-500.0,0.00025328,3]
[356109745,1741909905398,-974.37,0.00025328,3]
[356109746,1741909905407,-637.9,0.00025328,3]
[356109747,1741909905417,-878.52,0.00025328,3]
[356109748,1741909905427,-500.0,0.00025328,3]
[356109749,1741909905436,-500.0,0.00025328,3]
[356109750,1741909905447,-500.0,0.00025328,3]
[356109751,1741909905457,-607.94759735,0.00025328,3]
[356109752,1741909905466,-500.0,0.00025328,3]
[356109753,1741909905476,-500.0,0.00025328,3]
[356109754,1741909905487,-581.67,0.00025328,3]
[356109755,1741909905496,-1951.21,0.00025328,3]
[356109756,1741909905507,-500.0,0.00025328,3]
[356109757,1741909905518,-2023.2,0.00025328,3]
[356109758,1741909905527,-2022.67,0.00025328,3]
[356109759,1741909905536,-1071.52,0.00025328,3]
[356109760,1741909905546,-1319.48,0.00025328,3]
[356109761,1741909905555,-1318.79,0.00025328,3]
[356109762,1741909905565,-817.82,0.00025328,3]
[356109763,1741909905574,-500.0,0.00025328,3]
[356109764,1741909905583,-1858.28,0.00025328,3]
[356109765,1741909905592,-500.0,0.00025328,3]
[356109766,1741909905601,-500.0,0.00025328,3]
[356109767,1741909905612,-1341.33,0.00025328,3]
[356109768,1741909905621,-500.0,0.00025328,3]
[356109769,1741909905630,-500.0,0.00025328,3]
[356109770,1741909905640,-500.0,0.00025328,3]
[356109771,1741909905649,-1345.3,0.00025328,3]
[356109772,1741909905659,-500.0,0.00025328,2]
[356109773,1741909905668,-1005.07,0.00025328,3]
[356109774,1741909905678,-2009.8,0.00025328,3]
[356109775,1741909905687,-500.0,0.00025328,3]
[356109776,1741909905697,-500.0,0.00025328,3]
[356109777,1741909905706,-761.68,0.00025328,3]
[356109778,1741909905716,-1194.67,0.00025328,3]
[356109779,1741909905726,-3283.37,0.00025328,3]
[356109780,1741909905736,-1173.33,0.00025328,3]
[356109781,1741909905750,-500.0,0.00025328,3]
[356109782,1741909905760,-647.14,0.00025328,3]
[356109783,1741909905770,-610.98,0.00025328,3]
[356109784,1741909905780,-1389.09,0.00025328,3]
[356109785,1741909905790,-500.0,0.00025328,3]
[356109786,1741909905799,-558.82,0.00025328,3]
[356109787,1741909905809,-535.09,0.00025328,3]
[356109788,1741909905818,-1705.22,0.00025328,3]
[356109789,1741909905827,-500.0,0.00025328,3]
[356109790,1741909905837,-792.15,0.00025328,3]
[356109791,1741909905847,-500.0,0.00025328,3]
[356109792,1741909905857,-1894.67,0.00025328,3]
[356109793,1741909905867,-1930.42,0.00025328,3]
[356109794,1741909905876,-500.0,0.00025328,3]
[356109795,1741909905886,-573.45,0.00025328,3]
[356109796,1741909905896,-4252.22,0.00025328,3]
[356109797,1741909905906,-1350.01,0.00025328,3]
[356109798,1741909905916,-500.0,0.00025328,3]
[356109799,1741909905926,-500.0,0.00025328,3]
[356109800,1741909905936,-957.24,0.00025328,3]
[356109801,1741909905946,-813.96,0.00025328,3]
[356109802,1741909905956,-500.0,0.00025328,3]
[356109803,1741909905965,-659.78,0.00025328,3]
[356109804,1741909905975,-500.0,0.00025328,3]
[356109805,1741909905984,-666.36,0.00025328,3]
[356109806,1741909905996,-500.0,0.00025328,3]
[356109807,1741909906005,-500.0,0.00025328,3]
[356109808,1741909906015,-1214.54,0.00025328,3]
[356109809,1741909906025,-500.0,0.00025328,3]
[356109810,1741909906035,-740.67,0.00025328,3]
[356109811,1741909906045,-500.0,0.00025328,3]
[356109812,1741909906055,-500.0,0.00025328,3]
[356109813,1741909906064,-1011.7,0.00025328,3]
[356109814,1741909906073,-1446.01,0.00025328,3]
[356109815,1741909906083,-509.81,0.00025328,3]
[356109816,1741909906092,-500.0,0.00025328,3]
[356109817,1741909906102,-506.61,0.00025328,3]
[356109818,1741909906112,-1624.15,0.00025328,3]
[356109819,1741909906121,-1714.12,0.00025328,3]
[356109820,1741909906130,-1542.57,0.00025328,3]
[356109821,1741909906139,-1453.97,0.00025328,3]
[356109822,1741909906149,-679.28,0.00025328,3]
[356109823,1741909906158,-511.82,0.00025328,3]
[356109824,1741909906167,-732.6,0.00025328,3]
[356109825,1741909906177,-509.45,0.00025328,3]
[356109826,1741909906187,-528.56,0.00025328,3]
[356109827,1741909906196,-803.83,0.00025328,3]
[356109828,1741909906206,-500.0,0.00025328,3]
[356109829,1741909906216,-500.0,0.00025328,3]
[356109830,1741909906226,-500.0,0.00025328,3]
[356109831,1741909906235,-1621.13,0.00025328,3]
[356109832,1741909906246,-265.60085688,0.00025328,3]
[356109833,1741909906256,-684.37,0.00025328,3]
[356109834,1741909906265,-500.0,0.00025328,3]
[356109835,1741909906275,-500.0,0.00025328,3]
[356109836,1741909906284,-3776.5,0.00025328,3]
[356109837,1741909906294,-500.0,0.00025328,3]
[356109838,1741909906303,-500.0,0.00025328,3]
[356109839,1741909906313,-568.39,0.00025328,3]
[356109840,1741909906323,-500.0,0.00025328,3]
[356109841,1741909906332,-500.0,0.00025328,3]
[356109842,1741909906342,-1817.75,0.00025328,3]
[356109843,1741909906352,-1602.7,0.00025328,3]
[356109844,1741909906362,-500.0,0.00025328,3]
[356109845,1741909906372,-500.0,0.00025328,3]
[356109846,1741909906382,-938.17,0.00025328,3]
[356109847,1741909906392,-728.56,0.00025328,3]
[356109848,1741909906402,-1921.94,0.00025328,3]
[356109849,1741909906411,-623.74197715,0.00025328,3]
[356109850,1741909906421,-500.0,0.00025328,3]
[356109851,1741909906431,-515.11,0.00025328,3]
[356109852,1741909906442,-500.0,0.00025328,3]
[356109853,1741909906454,-519.89,0.00025328,3]
[356109854,1741909906463,-547.45,0.00025328,3]
[356109855,1741909906472,-1144.38,0.00025328,3]
[356109856,1741909906483,-1019.22,0.00025328,3]
[356109857,1741909906492,-500.0,0.00025328,3]
[356109858,1741909906502,-501.97,0.00025328,3]
[356109859,1741909906512,-742.8,0.00025328,3]
[356109860,1741909906522,-575.22,0.00025328,3]
[356109861,1741909906532,-500.0,0.00025328,3]
[356109862,1741909906542,-947.29,0.00025328,3]
[356109863,1741909906552,-1068.83,0.00025328,3]
[356109864,1741909906562,-500.0,0.00025328,3]
[356109865,1741909906571,-1182.53,0.00025328,3]
[356109866,1741909906580,-1076.88,0.00025328,3]
[356109867,1741909906590,-1771.49,0.00025354,3]
[356109868,1741909906599,-1290.76,0.00025354,3]
[356109869,1741909906609,-559.65,0.00025354,3]
[356109870,1741909906619,-1582.8,0.00025354,3]
[356109871,1741909906629,-500.0,0.00025354,3]
[356109872,1741909906639,-500.0,0.00025354,3]
[356109873,1741909906649,-628.37,0.00025354,3]
[356109874,1741909906659,-3568.36,0.00025354,3]
[356109875,1741909906669,-500.0,0.00025354,3]
[356109876,1741909906679,-500.0,0.00025354,3]
[356109877,1741909906689,-534.48,0.00025354,3]
[356109878,1741909906698,-1267.72,0.00025354,3]
[356109879,1741909906708,-1652.9,0.00025354,3]
[356109880,1741909906717,-2343.56,0.00025354,3]
[356109881,1741909906727,-534.22,0.00025354,3]
[356109882,1741909906737,-855.84,0.00025354,3]
[356109883,1741909906750,-2980.86,0.00025354,3]
[356109884,1741909906760,-1751.29,0.00025354,3]
[356109885,1741909906770,-521.41,0.00025354,3]
[356109886,1741909906780,-1817.04,0.00025354,3]
[356109887,1741909906791,-500.0,0.00025354,3]